[Event "Titled Tuesday Blitz May 30 Late 2023"]
[White "Coelho, Ramyres Santana"]
[Black "Omariev, Maksim"]
[WhiteFideId "2120690"]
[BlackFideId "4193423"]
[WhiteElo "1888"]
[BlackElo "2464"]
[Result "0-1"]
[Round "02"]
[TimeControl "180+2"]
[Date "2023.05.31"]
[WhiteClock "0:00:12"]
[BlackClock "0:00:07"]

1. e4 {[%clk 0:01:58]}  c5 {[%clk 0:02:58]} 2. Nf3 {[%clk 0:01:58]}  d6 {[%clk 0:02:58]} 3. d4 {[%clk 0:01:59]}  cxd4 {[%clk 0:02:59]} 4. Nxd4 {[%clk 0:02:00]}  Nf6 {[%clk 0:02:59]} 5. Nc3 {[%clk 0:02:00]}  a6 {[%clk 0:03:00]} 6. f3 {[%clk 0:02:00]}  e6 {[%clk 0:03:00]} 7. Be3 {[%clk 0:02:00]}  b5 {[%clk 0:03:00]} 8. Qd2 {[%clk 0:02:01]}  Bb7 {[%clk 0:03:01]} 9. O-O-O {[%clk 0:02:01]}  Nbd7 {[%clk 0:03:01]} 10. g4 {[%clk 0:02:01]}  h6 {[%clk 0:02:56]} 11. Bg2 {[%clk 0:01:58]}  b4 {[%clk 0:02:52]} 12. Nce2 {[%clk 0:01:56]}  d5 {[%clk 0:02:51]} 13. exd5 {[%clk 0:01:55]}  Nxd5 {[%clk 0:02:52]} 14. Ng3 {[%clk 0:01:54]}  Nxe3 {[%clk 0:02:47]} 15. Qxe3 {[%clk 0:01:51]}  Qb6 {[%clk 0:02:47]} 16. Rhe1 {[%clk 0:01:50]}  Bc5 {[%clk 0:02:43]} 17. Qd3 {[%clk 0:01:39]}  O-O-O {[%clk 0:01:57]} 18. Qc4 {[%clk 0:01:32]}  Kb8 {[%clk 0:01:54]} 19. Ne4 {[%clk 0:01:16]}  Bd5 {[%clk 0:01:52]} 20. Qd3 {[%clk 0:01:09]}  Ne5 {[%clk 0:01:48]} 21. Qe3 {[%clk 0:01:01]}  Nc4 {[%clk 0:01:29]} 22. Qd3 {[%clk 0:00:54]}  Be7 {[%clk 0:00:44]} 23. b3 {[%clk 0:00:51]}  Na3 {[%clk 0:00:40]} 24. Qe2 {[%clk 0:00:48]}  Rd7 {[%clk 0:00:36]} 25. f4 {[%clk 0:00:42]}  Rhd8 {[%clk 0:00:35]} 26. f5 {[%clk 0:00:40]}  Rc8 {[%clk 0:00:21]} 27. Rd2 {[%clk 0:00:36]}  Rdc7 {[%clk 0:00:20]} 28. fxe6 {[%clk 0:00:33]}  fxe6 {[%clk 0:00:20]} 29. h3 {[%clk 0:00:24]}  e5 {[%clk 0:00:19]} 30. Nf5 {[%clk 0:00:16]}  Bf8 {[%clk 0:00:07]} 31. Ne3 {[%clk 0:00:15]}  Bg8 {[%clk 0:00:04]} 32. Rf1 {[%clk 0:00:12]}  Nb5 {[%clk 0:00:04]} 33. Rf2 {[%clk 0:00:13]}  Nd4 {[%clk 0:00:04]} 34. Qd3 {[%clk 0:00:12]}  Bh7 {[%clk 0:00:04]} 35. Nc4 {[%clk 0:00:12]}  Qb5 {[%clk 0:00:04]} 36. Kb2 {[%clk 0:00:10]}  a5 {[%clk 0:00:04]} 37. Rxf8 {[%clk 0:00:08]}  Rxf8 {[%clk 0:00:03]} 38. Nxe5 {[%clk 0:00:09]}  Qxd3 {[%clk 0:00:02]} 39. Nxd3 {[%clk 0:00:09]}  Rfc8 {[%clk 0:00:01]} 40. Ndc5 {[%clk 0:00:08]}  Nb5 {[%clk 0:00:01]} 41. Na6+ {[%clk 0:00:08]}  Kb7 {[%clk 0:00:01]} 42. Nxc7 {[%clk 0:00:09]}  Kxc7 {[%clk 0:00:02]} 43. Nc5 {[%clk 0:00:09]}  Na3 {[%clk 0:00:02]} 44. Ne6+ {[%clk 0:00:09]}  Kb6 {[%clk 0:00:02]} 45. Nd4 {[%clk 0:00:10]}  Rd8 {[%clk 0:00:02]} 46. Bf3 {[%clk 0:00:08]}  Nb5 {[%clk 0:00:02]} 47. Nxb5 {[%clk 0:00:08]}  Rxd2 {[%clk 0:00:02]} 48. a4 {[%clk 0:00:07]}  Rxc2+ {[%clk 0:00:02]} 49. Kb1 {[%clk 0:00:06]}  Rf2+ {[%clk 0:00:03]} 50. Ka1 {[%clk 0:00:07]}  Rxf3 {[%clk 0:00:04]} 51. Nd4 {[%clk 0:00:07]}  Rd3 {[%clk 0:00:04]} 52. Ne6 {[%clk 0:00:08]}  Rxb3 {[%clk 0:00:04]} 53. Nf4 {[%clk 0:00:09]}  Ra3+ {[%clk 0:00:05]} 54. Kb2 {[%clk 0:00:09]}  Rf3 {[%clk 0:00:06]} 55. Nd5+ {[%clk 0:00:10]}  Kc5 {[%clk 0:00:05]} 56. Ne3 {[%clk 0:00:11]}  Rxe3 {[%clk 0:00:05]} 57. g5 {[%clk 0:00:11]}  Rxh3 {[%clk 0:00:06]} 58. gxh6 {[%clk 0:00:12]}  gxh6 {[%clk 0:00:07]} 0-1


[Site "https://www.chess.com"]

[Event "Titled Tuesday Blitz May 30 Late 2023"]
[White "Botez, Alexandra"]
[Black "Arencibia Monduy, Antonio"]
[WhiteFideId "2603365"]
[BlackFideId "3507939"]
[WhiteElo "2040"]
[BlackElo "2456"]
[Result "1/2-1/2"]
[Round "02"]
[TimeControl "180+2"]
[Date "2023.05.31"]
[WhiteClock "0:00:12"]
[BlackClock "0:00:04"]

1. d4 {[%clk 0:02:49]}  Nf6 {[%clk 0:02:59]} 2. c4 {[%clk 0:02:47]}  e6 {[%clk 0:03:00]} 3. Nf3 {[%clk 0:02:47]}  b6 {[%clk 0:03:00]} 4. Nc3 {[%clk 0:02:43]}  Bb7 {[%clk 0:03:00]} 5. Bg5 {[%clk 0:02:39]}  Be7 {[%clk 0:03:00]} 6. e3 {[%clk 0:02:38]}  Ne4 {[%clk 0:03:00]} 7. Bxe7 {[%clk 0:02:37]}  Qxe7 {[%clk 0:03:01]} 8. Bd3 {[%clk 0:02:37]}  Nxc3 {[%clk 0:03:01]} 9. bxc3 {[%clk 0:02:38]}  O-O {[%clk 0:03:01]} 10. O-O {[%clk 0:02:36]}  d6 {[%clk 0:03:00]} 11. Nd2 {[%clk 0:02:36]}  e5 {[%clk 0:02:58]} 12. e4 {[%clk 0:02:34]}  Nd7 {[%clk 0:02:54]} 13. f4 {[%clk 0:02:31]}  exf4 {[%clk 0:02:33]} 14. Rxf4 {[%clk 0:02:30]}  f5 {[%clk 0:02:30]} 15. Qe2 {[%clk 0:00:53]}  fxe4 {[%clk 0:02:20]} 16. Rxf8+ {[%clk 0:00:53]}  Rxf8 {[%clk 0:02:20]} 17. Bxe4 {[%clk 0:00:52]}  Nf6 {[%clk 0:02:04]} 18. Re1 {[%clk 0:00:50]}  Nxe4 {[%clk 0:01:43]} 19. Nxe4 {[%clk 0:00:50]}  Qh4 {[%clk 0:01:20]} 20. d5 {[%clk 0:00:47]}  Bc8 {[%clk 0:01:19]} 21. Ng3 {[%clk 0:00:42]}  h6 {[%clk 0:01:02]} 22. Qe4 {[%clk 0:00:34]}  Qxe4 {[%clk 0:00:48]} 23. Rxe4 {[%clk 0:00:34]}  Ba6 {[%clk 0:00:47]} 24. Ne2 {[%clk 0:00:34]}  Kf7 {[%clk 0:00:42]} 25. Nd4 {[%clk 0:00:34]}  Re8 {[%clk 0:00:33]} 26. Ne6 {[%clk 0:00:34]}  Re7 {[%clk 0:00:31]} 27. Rf4+ {[%clk 0:00:33]}  Kg6 {[%clk 0:00:31]} 28. g4 {[%clk 0:00:26]}  Kh7 {[%clk 0:00:16]} 29. Nf8+ {[%clk 0:00:22]}  Kg8 {[%clk 0:00:16]} 30. Ne6 {[%clk 0:00:21]}  Rf7 {[%clk 0:00:11]} 31. Re4 {[%clk 0:00:21]}  Bc8 {[%clk 0:00:10]} 32. Nd8 {[%clk 0:00:19]}  Rf8 {[%clk 0:00:10]} 33. Nc6 {[%clk 0:00:19]}  Bd7 {[%clk 0:00:07]} 34. Nxa7 {[%clk 0:00:11]}  Ra8 {[%clk 0:00:07]} 35. Nb5 {[%clk 0:00:12]}  Bxb5 {[%clk 0:00:06]} 36. cxb5 {[%clk 0:00:11]}  Rxa2 {[%clk 0:00:07]} 37. Re7 {[%clk 0:00:11]}  Ra5 {[%clk 0:00:07]} 38. c4 {[%clk 0:00:10]}  Ra7 {[%clk 0:00:07]} 39. Kf2 {[%clk 0:00:10]}  Kh7 {[%clk 0:00:08]} 40. Ke3 {[%clk 0:00:11]}  Kg6 {[%clk 0:00:08]} 41. h4 {[%clk 0:00:11]}  Kf6 {[%clk 0:00:09]} 42. Re6+ {[%clk 0:00:11]}  Kf7 {[%clk 0:00:09]} 43. Kd4 {[%clk 0:00:11]}  Ra3 {[%clk 0:00:09]} 44. Re4 {[%clk 0:00:11]}  Rh3 {[%clk 0:00:08]} 45. Rf4+ {[%clk 0:00:12]}  Ke7 {[%clk 0:00:08]} 46. h5 {[%clk 0:00:12]}  Rg3 {[%clk 0:00:04]} 47. Ke4 {[%clk 0:00:12]}  Rc3 {[%clk 0:00:04]} 48. Kf5 {[%clk 0:00:13]}  Kf7 {[%clk 0:00:03]} 49. Ke4+ {[%clk 0:00:12]}  Ke7 {[%clk 0:00:03]} 50. Kf5 {[%clk 0:00:12]}  Kf7 {[%clk 0:00:03]} 51. Ke4+ {[%clk 0:00:12]}  Ke7 {[%clk 0:00:04]} 1/2-1/2


[Site "https://www.chess.com"]

[Event "Titled Tuesday Blitz May 30 Late 2023"]
[White "Perez Rodriguez, Jennifer"]
[Black "Magallanes, Rey Jomar"]
[WhiteFideId "3507831"]
[BlackFideId "5205948"]
[WhiteElo "2116"]
[BlackElo "2230"]
[Result "0-1"]
[Round "02"]
[TimeControl "180+2"]
[Date "2023.05.31"]
[WhiteClock "0:00:09"]
[BlackClock "0:00:15"]

1. e4 {[%clk 0:02:57]}  c5 {[%clk 0:02:59]} 2. c3 {[%clk 0:02:57]}  d5 {[%clk 0:02:59]} 3. exd5 {[%clk 0:02:57]}  Qxd5 {[%clk 0:03:00]} 4. d4 {[%clk 0:02:57]}  Nc6 {[%clk 0:03:00]} 5. Nf3 {[%clk 0:02:58]}  Nf6 {[%clk 0:03:00]} 6. Na3 {[%clk 0:02:55]}  Bg4 {[%clk 0:02:58]} 7. Nb5 {[%clk 0:02:51]}  Rc8 {[%clk 0:02:54]} 8. Bf4 {[%clk 0:02:30]}  Qe4+ {[%clk 0:02:52]} 9. Be3 {[%clk 0:02:30]}  e6 {[%clk 0:02:34]} 10. Bd3 {[%clk 0:02:23]}  Bxf3 {[%clk 0:02:06]} 11. gxf3 {[%clk 0:02:17]}  Qd5 {[%clk 0:02:05]} 12. dxc5 {[%clk 0:01:50]}  Bxc5 {[%clk 0:01:54]} 13. c4 {[%clk 0:01:48]}  Bb4+ {[%clk 0:01:37]} 14. Ke2 {[%clk 0:01:46]}  Qe5 {[%clk 0:01:28]} 15. Qb3 {[%clk 0:01:39]}  Bc5 {[%clk 0:01:23]} 16. Qc3 {[%clk 0:01:07]}  Qxc3 {[%clk 0:01:21]} 17. Nxc3 {[%clk 0:01:05]}  Nd4+ {[%clk 0:01:19]} 18. Bxd4 {[%clk 0:01:03]}  Bxd4 {[%clk 0:01:20]} 19. Rac1 {[%clk 0:01:01]}  O-O {[%clk 0:01:19]} 20. Rhd1 {[%clk 0:01:01]}  Rfd8 {[%clk 0:01:18]} 21. b4 {[%clk 0:01:00]}  Nh5 {[%clk 0:01:18]} 22. Be4 {[%clk 0:00:58]}  Nf4+ {[%clk 0:01:17]} 23. Ke1 {[%clk 0:00:53]}  Rxc4 {[%clk 0:01:03]} 24. Nb5 {[%clk 0:00:45]}  Rxc1 {[%clk 0:00:52]} 25. Rxc1 {[%clk 0:00:44]}  f5 {[%clk 0:00:51]} 26. Nxd4 {[%clk 0:00:38]}  fxe4 {[%clk 0:00:51]} 27. Rc4 {[%clk 0:00:30]}  Nd3+ {[%clk 0:00:46]} 28. Ke2 {[%clk 0:00:25]}  Ne5 {[%clk 0:00:43]} 29. Nxe6 {[%clk 0:00:22]}  exf3+ {[%clk 0:00:34]} 30. Ke1 {[%clk 0:00:17]}  Re8 {[%clk 0:00:26]} 31. Nc7 {[%clk 0:00:16]}  Re7 {[%clk 0:00:20]} 32. Rc3 {[%clk 0:00:16]}  Nc4+ {[%clk 0:00:17]} 33. Kd1 {[%clk 0:00:14]}  Rxc7 {[%clk 0:00:17]} 34. Kc2 {[%clk 0:00:13]}  Na3+ {[%clk 0:00:17]} 35. Kb3 {[%clk 0:00:13]}  Rxc3+ {[%clk 0:00:18]} 36. Kxc3 {[%clk 0:00:13]}  Nb5+ {[%clk 0:00:18]} 37. Kc4 {[%clk 0:00:13]}  a6 {[%clk 0:00:18]} 38. Kc5 {[%clk 0:00:14]}  Kf7 {[%clk 0:00:18]} 39. Kb6 {[%clk 0:00:12]}  Nd6 {[%clk 0:00:18]} 40. Kc7 {[%clk 0:00:09]}  Ke6 {[%clk 0:00:18]} 41. a4 {[%clk 0:00:09]}  Ne4 {[%clk 0:00:15]} 0-1


[Site "https://www.chess.com"]

[Event "Titled Tuesday Blitz May 30 Late 2023"]
[White "Petrovic, Aleksa"]
[Black "Clawitter, Craig"]
[WhiteFideId "967629"]
[BlackFideId "2023105"]
[WhiteElo "2309"]
[BlackElo "2208"]
[Result "0-1"]
[Round "02"]
[TimeControl "180+2"]
[Date "2023.05.31"]
[WhiteClock "0:00:04"]
[BlackClock "0:00:04"]

1. e4 {[%clk 0:03:00]}  e6 {[%clk 0:03:00]} 2. d4 {[%clk 0:02:59]}  d5 {[%clk 0:03:00]} 3. Nd2 {[%clk 0:02:59]}  Be7 {[%clk 0:03:00]} 4. e5 {[%clk 0:02:46]}  c5 {[%clk 0:02:59]} 5. c3 {[%clk 0:02:45]}  cxd4 {[%clk 0:02:50]} 6. cxd4 {[%clk 0:02:43]}  Nh6 {[%clk 0:02:51]} 7. Ngf3 {[%clk 0:02:39]}  Nf5 {[%clk 0:02:51]} 8. Bd3 {[%clk 0:02:38]}  Nc6 {[%clk 0:02:48]} 9. Bxf5 {[%clk 0:02:38]}  exf5 {[%clk 0:02:49]} 10. O-O {[%clk 0:02:39]}  O-O {[%clk 0:02:43]} 11. Re1 {[%clk 0:02:36]}  f4 {[%clk 0:02:44]} 12. Nb1 {[%clk 0:02:24]}  g5 {[%clk 0:02:43]} 13. Nc3 {[%clk 0:02:24]}  Be6 {[%clk 0:02:30]} 14. b3 {[%clk 0:02:22]}  Kh8 {[%clk 0:02:28]} 15. Bb2 {[%clk 0:02:20]}  Rc8 {[%clk 0:02:28]} 16. Rc1 {[%clk 0:02:18]}  Bf5 {[%clk 0:02:14]} 17. a3 {[%clk 0:01:59]}  a5 {[%clk 0:02:10]} 18. Na4 {[%clk 0:01:55]}  Rg8 {[%clk 0:01:44]} 19. Nc5 {[%clk 0:01:52]}  b6 {[%clk 0:01:40]} 20. Nb7 {[%clk 0:01:45]}  Qf8 {[%clk 0:01:23]} 21. Nd6 {[%clk 0:01:41]}  Bxd6 {[%clk 0:01:24]} 22. exd6 {[%clk 0:01:42]}  Qxd6 {[%clk 0:01:24]} 23. Ne5 {[%clk 0:01:40]}  Nxe5 {[%clk 0:01:07]} 24. dxe5 {[%clk 0:01:40]}  Qe6 {[%clk 0:01:08]} 25. Rxc8 {[%clk 0:01:33]}  Rxc8 {[%clk 0:01:09]} 26. Qh5 {[%clk 0:01:33]}  Rc2 {[%clk 0:00:53]} 27. Bd4 {[%clk 0:01:26]}  h6 {[%clk 0:00:30]} 28. Qd1 {[%clk 0:01:13]}  Kh7 {[%clk 0:00:27]} 29. h4 {[%clk 0:01:12]}  gxh4 {[%clk 0:00:10]} 30. Qf3 {[%clk 0:01:09]}  Be4 {[%clk 0:00:08]} 31. Qxf4 {[%clk 0:00:50]}  Qg6 {[%clk 0:00:08]} 32. Qh2 {[%clk 0:00:41]}  Qg5 {[%clk 0:00:04]} 33. e6 {[%clk 0:00:35]}  Rc1 {[%clk 0:00:04]} 34. Bc3 {[%clk 0:00:06]}  Rxe1+ {[%clk 0:00:04]} 35. Bxe1 {[%clk 0:00:06]}  Qc1 {[%clk 0:00:05]} 36. Qf4 {[%clk 0:00:06]}  Qxf4 {[%clk 0:00:04]} 37. e7 {[%clk 0:00:04]}  Qe5 {[%clk 0:00:04]} 0-1


[Site "https://www.chess.com"]

[Event "Titled Tuesday Blitz May 30 Late 2023"]
[White "Mazurkiewicz, Michal"]
[Black "zano2023"]
[WhiteFideId "1124943"]
[WhiteElo "2054"]
[BlackElo "2174"]
[Result "0-1"]
[Round "02"]
[TimeControl "180+2"]
[Date "2023.05.31"]
[WhiteClock "0:00:12"]
[BlackClock "0:00:45"]

1. e4 {[%clk 0:03:00]}  e5 {[%clk 0:02:59]} 2. Nf3 {[%clk 0:03:00]}  d6 {[%clk 0:02:59]} 3. d4 {[%clk 0:03:00]}  f5 {[%clk 0:02:59]} 4. exf5 {[%clk 0:02:58]}  e4 {[%clk 0:02:59]} 5. Qe2 {[%clk 0:02:23]}  Bxf5 {[%clk 0:02:58]} 6. Nfd2 {[%clk 0:02:08]}  Nf6 {[%clk 0:02:53]} 7. f3 {[%clk 0:02:06]}  d5 {[%clk 0:02:52]} 8. c4 {[%clk 0:02:04]}  c6 {[%clk 0:02:52]} 9. Nc3 {[%clk 0:02:04]}  Bb4 {[%clk 0:02:50]} 10. cxd5 {[%clk 0:01:59]}  cxd5 {[%clk 0:02:49]} 11. fxe4 {[%clk 0:01:59]}  Nxe4 {[%clk 0:02:42]} 12. Ndxe4 {[%clk 0:01:58]}  Bxe4 {[%clk 0:02:39]} 13. Bd2 {[%clk 0:01:56]}  Bxc3 {[%clk 0:02:38]} 14. bxc3 {[%clk 0:01:56]}  O-O {[%clk 0:02:37]} 15. Qg4 {[%clk 0:01:41]}  Qf6 {[%clk 0:02:30]} 16. Be3 {[%clk 0:01:32]}  Nc6 {[%clk 0:02:27]} 17. Be2 {[%clk 0:01:28]}  Rae8 {[%clk 0:02:11]} 18. Kd2 {[%clk 0:01:20]}  Bf5 {[%clk 0:02:03]} 19. Qf3 {[%clk 0:01:16]}  Qe6 {[%clk 0:01:59]} 20. Rhe1 {[%clk 0:01:02]}  Be4 {[%clk 0:01:59]} 21. Qg3 {[%clk 0:01:01]}  Na5 {[%clk 0:01:50]} 22. Qc7 {[%clk 0:00:36]}  Nc6 {[%clk 0:01:34]} 23. Bd3 {[%clk 0:00:24]}  Re7 {[%clk 0:01:29]} 24. Qg3 {[%clk 0:00:24]}  Na5 {[%clk 0:01:24]} 25. Bg5 {[%clk 0:00:21]}  Ref7 {[%clk 0:01:21]} 26. Bxe4 {[%clk 0:00:17]}  dxe4 {[%clk 0:01:01]} 27. Re2 {[%clk 0:00:16]}  Nc4+ {[%clk 0:01:00]} 28. Kc2 {[%clk 0:00:16]}  Na3+ {[%clk 0:00:57]} 29. Kd2 {[%clk 0:00:16]}  Qb6 {[%clk 0:00:49]} 30. Ke3 {[%clk 0:00:13]}  Nc4+ {[%clk 0:00:46]} 31. Kxe4 {[%clk 0:00:12]}  Qg6+ {[%clk 0:00:46]} 32. Kd5 {[%clk 0:00:12]}  Qc6# {[%clk 0:00:45]} 0-1


[Site "https://www.chess.com"]

[Event "Titled Tuesday Blitz May 30 Late 2023"]
[White "ritanovikova"]
[Black "Wizard_of_Odds"]
[WhiteElo "2169"]
[BlackElo "2440"]
[Result "1/2-1/2"]
[Round "02"]
[TimeControl "180+2"]
[Date "2023.05.31"]
[WhiteClock "0:00:06"]
[BlackClock "0:00:03"]

1. e4 {[%clk 0:03:00]}  c5 {[%clk 0:02:58]} 2. Nc3 {[%clk 0:02:59]}  Nc6 {[%clk 0:02:57]} 3. d3 {[%clk 0:03:00]}  e6 {[%clk 0:02:53]} 4. Be3 {[%clk 0:03:00]}  d5 {[%clk 0:02:50]} 5. exd5 {[%clk 0:02:55]}  exd5 {[%clk 0:02:51]} 6. d4 {[%clk 0:02:52]}  cxd4 {[%clk 0:02:47]} 7. Bxd4 {[%clk 0:02:53]}  Be6 {[%clk 0:02:32]} 8. Bb5 {[%clk 0:02:50]}  Ne7 {[%clk 0:02:28]} 9. Nf3 {[%clk 0:02:48]}  a6 {[%clk 0:02:26]} 10. Ba4 {[%clk 0:02:34]}  b5 {[%clk 0:02:25]} 11. Bb3 {[%clk 0:02:34]}  Qd6 {[%clk 0:01:55]} 12. O-O {[%clk 0:02:32]}  Nxd4 {[%clk 0:01:33]} 13. Nxd4 {[%clk 0:02:31]}  b4 {[%clk 0:01:15]} 14. Nxe6 {[%clk 0:02:19]}  fxe6 {[%clk 0:01:12]} 15. Ne2 {[%clk 0:02:16]}  Ng6 {[%clk 0:01:02]} 16. Nd4 {[%clk 0:02:03]}  Kf7 {[%clk 0:00:31]} 17. Qf3+ {[%clk 0:01:57]}  Qf4 {[%clk 0:00:31]} 18. Nxe6 {[%clk 0:01:49]}  Qxf3 {[%clk 0:00:20]} 19. Ng5+ {[%clk 0:01:48]}  Kf6 {[%clk 0:00:21]} 20. Nxf3 {[%clk 0:01:49]}  Rd8 {[%clk 0:00:18]} 21. Rad1 {[%clk 0:01:47]}  Nf4 {[%clk 0:00:18]} 22. Rfe1 {[%clk 0:01:38]}  Bc5 {[%clk 0:00:15]} 23. g3 {[%clk 0:01:37]}  Nh3+ {[%clk 0:00:15]} 24. Kg2 {[%clk 0:01:34]}  Nxf2 {[%clk 0:00:14]} 25. Rxd5 {[%clk 0:01:31]}  Rxd5 {[%clk 0:00:13]} 26. Bxd5 {[%clk 0:01:32]}  Ng4 {[%clk 0:00:06]} 27. Bb3 {[%clk 0:01:23]}  Ne3+ {[%clk 0:00:05]} 28. Kh3 {[%clk 0:01:21]}  Rd8 {[%clk 0:00:03]} 29. c3 {[%clk 0:01:02]}  g5 {[%clk 0:00:03]} 30. g4 {[%clk 0:01:01]}  h5 {[%clk 0:00:03]} 31. Nd4 {[%clk 0:00:56]}  Bxd4 {[%clk 0:00:03]} 32. cxd4 {[%clk 0:00:55]}  hxg4+ {[%clk 0:00:04]} 33. Kg3 {[%clk 0:00:55]}  Nf5+ {[%clk 0:00:04]} 34. Kg2 {[%clk 0:00:54]}  Rxd4 {[%clk 0:00:04]} 35. Re2 {[%clk 0:00:49]}  a5 {[%clk 0:00:04]} 36. Rf2 {[%clk 0:00:46]}  Ke5 {[%clk 0:00:03]} 37. Re2+ {[%clk 0:00:46]}  Re4 {[%clk 0:00:04]} 38. Rf2 {[%clk 0:00:39]}  Nh4+ {[%clk 0:00:03]} 39. Kf1 {[%clk 0:00:38]}  Rf4 {[%clk 0:00:03]} 40. Bd1 {[%clk 0:00:36]}  Rxf2+ {[%clk 0:00:02]} 41. Kxf2 {[%clk 0:00:37]}  Kf4 {[%clk 0:00:03]} 42. Be2 {[%clk 0:00:32]}  Nf3 {[%clk 0:00:03]} 43. h3 {[%clk 0:00:32]}  Nd4 {[%clk 0:00:04]} 44. Bxg4 {[%clk 0:00:31]}  Nc2 {[%clk 0:00:02]} 45. Be6 {[%clk 0:00:29]}  Ne3 {[%clk 0:00:03]} 46. Bg8 {[%clk 0:00:27]}  a4 {[%clk 0:00:02]} 47. Be6 {[%clk 0:00:26]}  Nd1+ {[%clk 0:00:03]} 48. Ke1 {[%clk 0:00:22]}  Nxb2 {[%clk 0:00:04]} 49. Kd2 {[%clk 0:00:22]}  Ke4 {[%clk 0:00:04]} 50. Kc2 {[%clk 0:00:22]}  Nd3 {[%clk 0:00:04]} 51. Bd7 {[%clk 0:00:18]}  Nc5 {[%clk 0:00:04]} 52. Bc6+ {[%clk 0:00:17]}  Kd4 {[%clk 0:00:04]} 53. Kb2 {[%clk 0:00:16]}  Kc4 {[%clk 0:00:04]} 54. Be8 {[%clk 0:00:16]}  a3+ {[%clk 0:00:05]} 55. Kc2 {[%clk 0:00:16]}  Kd4 {[%clk 0:00:05]} 56. Bf7 {[%clk 0:00:15]}  Ke4 {[%clk 0:00:05]} 57. Be8 {[%clk 0:00:13]}  Kf4 {[%clk 0:00:06]} 58. Bh5 {[%clk 0:00:11]}  Kg3 {[%clk 0:00:06]} 59. Bg4 {[%clk 0:00:11]}  Kf4 {[%clk 0:00:06]} 60. Bc8 {[%clk 0:00:11]}  Ke4 {[%clk 0:00:06]} 61. Bg4 {[%clk 0:00:10]}  Ke3 {[%clk 0:00:07]} 62. Bc8 {[%clk 0:00:10]}  Kd4 {[%clk 0:00:07]} 63. Bg4 {[%clk 0:00:09]}  Kc4 {[%clk 0:00:07]} 64. Bc8 {[%clk 0:00:09]}  b3+ {[%clk 0:00:07]} 65. axb3+ {[%clk 0:00:09]}  Kb4 {[%clk 0:00:08]} 66. Bg4 {[%clk 0:00:09]}  Nxb3 {[%clk 0:00:08]} 67. Kb1 {[%clk 0:00:07]}  Nc5 {[%clk 0:00:08]} 68. Ka2 {[%clk 0:00:07]}  Ne4 {[%clk 0:00:08]} 69. Be6 {[%clk 0:00:07]}  Nc3+ {[%clk 0:00:09]} 70. Ka1 {[%clk 0:00:07]}  Kc5 {[%clk 0:00:09]} 71. Bg4 {[%clk 0:00:07]}  Kd4 {[%clk 0:00:10]} 72. Bc8 {[%clk 0:00:07]}  Ke3 {[%clk 0:00:10]} 73. Bg4 {[%clk 0:00:07]}  Kf4 {[%clk 0:00:10]} 74. Bc8 {[%clk 0:00:07]}  Kg3 {[%clk 0:00:11]} 75. Bg4 {[%clk 0:00:08]}  Ne4 {[%clk 0:00:11]} 76. Bc8 {[%clk 0:00:08]}  Nf2 {[%clk 0:00:11]} 77. Ka2 {[%clk 0:00:07]}  Nxh3 {[%clk 0:00:11]} 78. Kxa3 {[%clk 0:00:07]}  Nf2 {[%clk 0:00:10]} 79. Kb2 {[%clk 0:00:07]}  Ne4 {[%clk 0:00:10]} 80. Kc2 {[%clk 0:00:06]}  Kf3 {[%clk 0:00:10]} 81. Kd3 {[%clk 0:00:04]}  Kf4 {[%clk 0:00:10]} 82. Ke2 {[%clk 0:00:03]}  Ng3+ {[%clk 0:00:09]} 83. Kf2 {[%clk 0:00:03]}  Nf5 {[%clk 0:00:09]} 84. Kg2 {[%clk 0:00:02]}  g4 {[%clk 0:00:09]} 85. Bd7 {[%clk 0:00:02]}  Ne3+ {[%clk 0:00:08]} 86. Kg1 {[%clk 0:00:02]}  g3 {[%clk 0:00:08]} 87. Bc6 {[%clk 0:00:03]}  Nf5 {[%clk 0:00:07]} 88. Bd5 {[%clk 0:00:02]}  Nh4 {[%clk 0:00:06]} 89. Bh1 {[%clk 0:00:02]}  Ke3 {[%clk 0:00:05]} 90. Bc6 {[%clk 0:00:02]}  Ng6 {[%clk 0:00:05]} 91. Bh1 {[%clk 0:00:03]}  Nf4 {[%clk 0:00:05]} 92. Bc6 {[%clk 0:00:03]}  Ke2 {[%clk 0:00:05]} 93. Bb7 {[%clk 0:00:03]}  Ke3 {[%clk 0:00:05]} 94. Bh1 {[%clk 0:00:03]}  Ne2+ {[%clk 0:00:04]} 95. Kg2 {[%clk 0:00:03]}  Kf4 {[%clk 0:00:05]} 96. Kh3 {[%clk 0:00:03]}  Ng1+ {[%clk 0:00:04]} 97. Kg2 {[%clk 0:00:04]}  Nf3 {[%clk 0:00:04]} 98. Kf1 {[%clk 0:00:04]}  Nh2+ {[%clk 0:00:04]} 99. Kg1 {[%clk 0:00:04]}  Ng4 {[%clk 0:00:04]} 100. Kg2 {[%clk 0:00:04]}  Ne5 {[%clk 0:00:03]} 101. Kg1 {[%clk 0:00:04]}  Kg4 {[%clk 0:00:04]} 102. Bg2 {[%clk 0:00:05]}  Nd3 {[%clk 0:00:04]} 103. Bf1 {[%clk 0:00:05]}  Nf4 {[%clk 0:00:04]} 104. Be2+ {[%clk 0:00:05]}  Kh3 {[%clk 0:00:04]} 105. Bf1+ {[%clk 0:00:06]}  Kh4 {[%clk 0:00:04]} 106. Bb5 {[%clk 0:00:05]}  g2 {[%clk 0:00:03]} 107. Bc6 {[%clk 0:00:06]}  Kg3 {[%clk 0:00:03]} 108. Bxg2 {[%clk 0:00:06]} 1/2-1/2


[Site "https://www.chess.com"]

[Event "Titled Tuesday Blitz May 30 Late 2023"]
[White "Mujumdar, Sameer"]
[Black "Fuentes Godoy, Lilia Ivonne"]
[WhiteFideId "2029707"]
[BlackFideId "5104130"]
[WhiteElo "2104"]
[BlackElo "2096"]
[Result "1-0"]
[Round "02"]
[TimeControl "180+2"]
[Date "2023.05.31"]
[WhiteClock "0:01:15"]
[BlackClock "0:00:03"]

1. d4 {[%clk 0:03:00]}  d5 {[%clk 0:02:59]} 2. Bf4 {[%clk 0:02:55]}  e6 {[%clk 0:02:58]} 3. e3 {[%clk 0:02:54]}  f5 {[%clk 0:02:59]} 4. Nf3 {[%clk 0:02:54]}  Nf6 {[%clk 0:02:59]} 5. Nbd2 {[%clk 0:02:54]}  Bd6 {[%clk 0:03:00]} 6. Bg3 {[%clk 0:02:52]}  O-O {[%clk 0:03:00]} 7. Bd3 {[%clk 0:02:52]}  b6 {[%clk 0:03:00]} 8. O-O {[%clk 0:02:51]}  Bb7 {[%clk 0:03:00]} 9. c4 {[%clk 0:02:51]}  Ne4 {[%clk 0:02:59]} 10. Rc1 {[%clk 0:02:49]}  Nd7 {[%clk 0:02:37]} 11. Qc2 {[%clk 0:02:45]}  Bxg3 {[%clk 0:02:28]} 12. hxg3 {[%clk 0:02:44]}  c5 {[%clk 0:02:20]} 13. cxd5 {[%clk 0:02:43]}  exd5 {[%clk 0:02:20]} 14. Bb5 {[%clk 0:02:32]}  Rc8 {[%clk 0:02:14]} 15. Qa4 {[%clk 0:02:27]}  Ndf6 {[%clk 0:01:59]} 16. Qxa7 {[%clk 0:02:26]}  Rf7 {[%clk 0:01:47]} 17. Qa3 {[%clk 0:02:19]}  Ra8 {[%clk 0:01:26]} 18. Qb3 {[%clk 0:02:12]}  c4 {[%clk 0:01:21]} 19. Qb4 {[%clk 0:02:11]}  Nxd2 {[%clk 0:01:16]} 20. Qxd2 {[%clk 0:02:05]}  Rxa2 {[%clk 0:01:16]} 21. Ne5 {[%clk 0:02:05]}  Re7 {[%clk 0:01:15]} 22. f3 {[%clk 0:02:03]}  Qa8 {[%clk 0:01:10]} 23. Qb4 {[%clk 0:02:02]}  Re6 {[%clk 0:01:06]} 24. b3 {[%clk 0:01:42]}  cxb3 {[%clk 0:00:27]} 25. Qxb3 {[%clk 0:01:43]}  Qa3 {[%clk 0:00:26]} 26. Qxa3 {[%clk 0:01:32]}  Rxa3 {[%clk 0:00:26]} 27. Rfe1 {[%clk 0:01:32]}  Kf8 {[%clk 0:00:20]} 28. Rc7 {[%clk 0:01:31]}  Ba6 {[%clk 0:00:21]} 29. Ra7 {[%clk 0:01:29]}  Bxb5 {[%clk 0:00:16]} 30. Rxa3 {[%clk 0:01:29]}  Bc4 {[%clk 0:00:17]} 31. Rb1 {[%clk 0:01:24]}  b5 {[%clk 0:00:17]} 32. Kf2 {[%clk 0:01:22]}  g5 {[%clk 0:00:13]} 33. Ra7 {[%clk 0:01:21]}  g4 {[%clk 0:00:10]} 34. Rb7 {[%clk 0:01:17]}  h5 {[%clk 0:00:06]} 35. Ra1 {[%clk 0:01:16]}  Re8 {[%clk 0:00:03]} 36. Rf7+ {[%clk 0:01:15]} 1-0


[Site "https://www.chess.com"]